bitfinex-derivatives/quotes_SOLF0:USTF0_20251025
["timestamp","ask_amount","ask_price","bid_price","bid_amount"]
[1761359739941,3.75877469,193.45,193.42,2.83]
[1761359740148,1.50440526,193.43,193.42,2.83]
[1761359740748,63.74440526,193.45,193.41,0.89964324]
[1761359741053,3.75877469,193.44,193.42,2.86]
[1761359746061,3.75877469,193.44,193.41,3.75964324]
[1761359747155,3.75877469,193.44,193.41,0.89964324]
[1761359747355,3.75877469,193.44,193.42,2.86]
[1761359749164,62.24,193.45,193.42,2.86]
[1761359749361,3.76157002,193.44,193.42,2.86]
[1761359749561,62.24,193.45,193.42,2.86]
[1761359749763,3.76141505,193.44,193.42,2.86]
[1761359749965,62.24,193.45,193.42,2.86]
[1761359750164,3.76141505,193.44,193.42,2.86]
[1761359750367,62.24,193.45,193.42,2.86]
[1761359750567,3.76184034,193.44,193.42,2.86]
[1761359750769,62.24,193.45,193.42,2.86]
[1761359751064,3.76184034,193.44,193.42,2.86]
[1761359751269,3.76235077,193.43,193.42,2.86]
[1761359751474,3.76235077,193.44,193.42,2.86]
[1761359751668,3.76235077,193.43,193.42,2.86]
[1761359751857,3.76235077,193.44,193.42,2.86]
[1761359752059,62.24,193.45,193.42,2.86]
[1761359752267,3.76253186,193.44,193.42,2.86]
[1761359752568,3.7633544,193.44,193.42,2.86]
[1761359753369,62.24,193.45,193.42,2.86]
[1761359753568,3.76441589,193.44,193.42,2.86]
[1761359753764,62.24,193.45,193.42,2.86]
[1761359753966,3.76441589,193.44,193.42,2.86]
[1761359754169,62.24,193.47,193.42,2.86]
[1761359754364,3.76563622,193.46,193.42,2.86]
[1761359754569,3.76563622,193.45,193.42,2.86]
[1761359754771,62.24,193.47,193.42,2.86]
[1761359754772,3.76563622,193.44,193.42,2.86]
[1761359755070,3.76563622,193.43,193.42,2.86]
[1761359778688,3.76563622,193.46,193.42,2.86]
[1761359778888,3.76563622,193.45,193.42,2.86]
[1761359779091,3.76563622,193.44,193.42,2.86]
[1761359779397,62.24,193.47,193.42,2.86]
[1761359779591,3.76438694,193.46,193.42,2.86]
[1761359779791,3.76438694,193.45,193.42,2.86]
[1761359779991,3.76438694,193.44,193.42,2.86]
[1761359780293,62.24,193.47,193.42,2.86]
[1761359780492,3.79081653,193.46,193.42,2.86]
[1761359780791,3.79081653,193.45,193.42,2.86]
[1761359780987,3.79081653,193.44,193.42,2.86]
[1761359781188,62.24,193.47,193.42,4.6523]
[1761359781494,124.27960939,193.48,193.41,0.89964324]
[1761359781495,119.45436275,193.48,193.44,2.83]
[1761359782402,119.45436275,193.48,193.43,2.35210983]
[1761359782403,119.45436275,193.48,193.46,2.83]
[1761359782706,4.82524664,193.52,193.46,2.83]
[1761359783906,4.82524664,193.52,193.46,7.4813]
[1761359785308,4.82524664,193.52,193.47,2.83]
[1761359789212,4.82524664,193.53,193.47,2.83]
[1761359793516,3.76697904,193.52,193.47,2.83]
[1761359793713,3.76697904,193.51,193.47,2.83]
[1761359793918,3.76697904,193.5,193.47,2.83]
[1761359794116,3.76697904,193.49,193.47,2.83]
[1761359794317,3.76697904,193.52,193.47,2.83]
[1761359794512,3.76697904,193.51,193.47,2.83]
[1761359794708,3.76697904,193.5,193.47,2.83]
[1761359794915,3.76697904,193.49,193.47,2.83]
[1761359795115,3.76697904,193.52,193.47,2.83]
[1761359795422,3.76697904,193.51,193.47,2.83]
[1761359795622,3.76697904,193.5,193.47,2.83]
[1761359795920,3.76697904,193.49,193.47,2.83]
[1761359796115,3.76697904,193.52,193.47,2.83]
[1761359796422,3.76697904,193.51,193.47,2.83]
[1761359796720,3.76697904,193.5,193.47,2.83]
[1761359796912,3.76697904,193.53,193.47,2.83]
[1761359797110,3.76697904,193.52,193.47,2.83]
[1761359797319,3.76697904,193.51,193.47,2.83]
[1761359797518,3.76697904,193.5,193.47,2.83]
[1761359797719,3.76697904,193.53,193.47,2.83]
[1761359798017,3.76697904,193.52,193.47,2.83]
[1761359798219,3.76697904,193.51,193.47,2.83]
[1761359798420,3.76697904,193.5,193.47,2.83]
[1761359798717,3.76697904,193.53,193.47,2.83]
[1761359798917,3.76697904,193.52,193.47,2.83]
[1761359799120,3.76697904,193.51,193.47,2.83]
[1761359799320,9.47494664,193.54,193.47,2.83]
[1761359799321,3.76697904,193.5,193.47,2.83]
[1761359799521,3.76697904,193.53,193.47,2.83]
[1761359799720,3.76697904,193.52,193.47,2.83]
[1761359799921,3.76697904,193.51,193.47,2.83]
[1761359800121,3.76697904,193.5,193.47,2.83]
[1761359800318,3.76697904,193.52,193.47,2.83]
[1761359800523,3.76697904,193.51,193.47,2.83]
[1761359800823,3.76697904,193.52,193.47,2.83]
[1761359801027,3.76697904,193.51,193.47,2.83]
[1761359801215,3.76697904,193.52,193.47,2.83]
[1761359801525,3.76697904,193.51,193.47,2.83]
[1761359801728,3.76697904,193.52,193.47,2.83]
[1761359802027,3.76697904,193.51,193.47,2.83]
[1761359802227,3.76697904,193.53,193.47,2.83]
[1761359802524,3.76697904,193.52,193.47,2.83]
[1761359802717,3.76697904,193.51,193.47,2.83]
[1761359802915,3.76697904,193.53,193.47,2.83]
[1761359803118,3.76697904,193.52,193.47,2.83]
[1761359803314,3.76697904,193.51,193.47,2.83]
[1761359803614,3.76697904,193.53,193.47,2.83]
[1761359803816,3.76697904,193.52,193.47,2.83]
[1761359804121,3.76697904,193.51,193.47,2.83]
[1761359804428,3.76697904,193.53,193.47,2.83]
[1761359804626,3.76697904,193.52,193.47,2.83]
[1761359804824,3.76697904,193.51,193.47,2.83]
[1761359805021,3.76697904,193.53,193.47,2.83]
[1761359805226,3.76697904,193.52,193.47,2.83]
[1761359805526,3.76697904,193.51,193.47,2.83]
[1761359805727,3.76697904,193.53,193.47,2.83]
[1761359806026,3.76697904,193.52,193.47,2.83]
[1761359806225,3.76697904,193.51,193.47,2.83]
[1761359806426,3.76697904,193.53,193.47,2.83]
[1761359806626,3.76697904,193.52,193.47,2.83]
[1761359806822,3.76697904,193.51,193.47,2.83]
[1761359807024,3.76697904,193.53,193.47,2.83]
[1761359807226,3.76697904,193.52,193.47,2.83]
[1761359807424,3.76697904,193.51,193.47,2.83]
[1761359807725,3.76697904,193.53,193.47,2.83]
[1761359808028,3.76697904,193.52,193.47,2.83]
[1761359808228,3.76697904,193.51,193.47,2.83]
[1761359808429,3.76697904,193.52,193.47,2.83]
[1761359808624,3.76697904,193.51,193.47,2.83]
[1761359808824,3.76697904,193.52,193.47,4.33418417]
[1761359809125,3.76697904,193.51,193.48,2.78]
[1761359809427,3.76697904,193.52,193.48,2.78]
[1761359809629,3.76697904,193.51,193.48,2.78]
[1761359809928,3.76697904,193.52,193.48,2.78]
[1761359810128,3.76697904,193.51,193.48,2.78]
[1761359810425,3.76697904,193.52,193.48,2.78]
[1761359810627,3.76697904,193.51,193.48,2.78]
[1761359810825,3.76697904,193.52,193.48,2.78]
[1761359811026,3.76697904,193.51,193.48,2.78]
[1761359811226,3.76697904,193.52,193.48,2.78]
[1761359811428,3.76697904,193.51,193.48,2.78]
[1761359811626,3.76697904,193.52,193.48,2.78]
[1761359811826,3.76697904,193.51,193.48,2.78]
[1761359812131,3.76697904,193.52,193.48,2.78]
[1761359812322,3.76697904,193.51,193.48,2.78]
[1761359812522,3.76697904,193.52,193.48,2.78]
[1761359812718,3.76697904,193.51,193.48,2.78]
[1761359812925,3.76697904,193.52,193.48,2.78]
[1761359813126,3.76697904,193.51,193.49,1.50418417]
[1761359813323,3.76697904,193.52,193.49,2.78]
[1761359813528,3.76697904,193.51,193.49,2.78]
[1761359813730,8.10662989,193.52,193.49,2.78]
[1761359813928,3.76697904,193.51,193.49,2.78]
[1761359814125,8.10662989,193.53,193.49,2.78]
[1761359814333,3.76697904,193.52,193.49,2.78]
[1761359814534,3.76697904,193.51,193.49,2.78]
[1761359814734,3.76697904,193.52,193.49,2.78]
[1761359814935,3.76697904,193.51,193.49,2.78]
[1761359815137,3.76697904,193.52,193.49,2.78]
[1761359815343,3.76697904,193.51,193.49,2.78]
[1761359815632,3.76697904,193.52,193.49,2.78]
[1761359815836,3.76697904,193.51,193.49,2.78]
[1761359816040,3.76697904,193.52,193.49,2.78]
[1761359816238,3.76697904,193.51,193.49,2.78]
[1761359816538,3.76697904,193.52,193.49,2.78]
[1761359816739,3.76697904,193.51,193.49,2.78]
[1761359816936,3.76697904,193.52,193.49,2.78]
[1761359817136,3.76697904,193.51,193.49,2.78]
[1761359817338,3.76697904,193.52,193.49,2.78]
[1761359817538,3.76697904,193.51,193.49,2.78]
[1761359817841,3.76697904,193.52,193.49,2.78]
[1761359818037,3.76697904,193.51,193.49,2.78]
[1761359818240,3.76697904,193.5,193.49,2.78]
[1761359818442,3.76697904,193.52,193.49,2.78]
[1761359818631,3.76697904,193.51,193.49,2.78]
[1761359818835,3.76697904,193.5,193.49,2.78]
[1761359819032,3.76697904,193.52,193.49,2.78]
[1761359819232,3.76697904,193.51,193.49,2.78]
[1761359819436,4.33965085,193.53,193.49,2.78]
[1761359819437,3.76697904,193.5,193.49,2.78]
[1761359819642,3.76697904,193.52,193.49,2.78]
[1761359819942,3.76697904,193.51,193.49,2.78]
[1761359820140,3.76697904,193.5,193.49,2.78]
[1761359820342,3.76697904,193.52,193.49,2.78]
[1761359820542,3.76697904,193.51,193.49,2.78]
[1761359820742,3.76697904,193.5,193.49,2.78]
[1761359820944,3.76697904,193.52,193.49,2.78]
[1761359821148,3.76697904,193.51,193.49,2.78]
[1761359821444,3.76697904,193.5,193.49,2.78]
[1761359821639,3.76697904,193.52,193.49,2.78]
[1761359821844,3.76697904,193.51,193.49,2.78]
[1761359822041,4.34261299,193.53,193.49,2.78]
[1761359822042,3.76697904,193.5,193.49,2.78]
[1761359827255,3.76697904,193.5,193.49,4.28418417]
[1761359827652,118.92691491,193.55,193.54,2.81]
[1761359827853,4.82524664,193.6,193.55,2.81]
[1761359828146,9.1737569,193.61,193.57,2.81]
[1761359828343,4.34851026,193.6,193.57,2.81]
[1761359828543,4.34851026,193.61,193.57,2.81]
[1761359828748,4.82524664,193.62,193.57,2.81]
[1761359828955,9.1737569,193.62,193.57,2.81]
[1761359829148,4.34851026,193.61,193.57,2.81]
[1761359829348,4.82524664,193.62,193.57,2.81]
[1761359829847,9.1737569,193.62,193.57,2.81]
[1761359830255,9.1737569,193.62,193.53,7.4598]
[1761359830256,1.50418417,193.59,193.53,7.4598]
[1761359830447,1.50418417,193.57,193.53,7.4598]
[1761359831742,4.34851026,193.6,193.54,2.81]
[1761359831945,9.1737569,193.6,193.54,2.81]
[1761359832352,4.34851026,193.6,193.54,2.81]
[1761359833343,8.99681026,193.6,193.54,4.31418417]
[1761359833954,8.99681026,193.6,193.54,1.50418417]
[1761359834257,13.8220569,193.6,193.54,1.50418417]
[1761359834461,4.34851026,193.59,193.54,1.50418417]
[1761359834756,4.34851026,193.59,193.52,4.31418417]
[1761359835758,4.34851026,193.59,193.54,1.50418417]
[1761359836350,8.99681026,193.6,193.54,1.50418417]
[1761359836759,4.6485,193.59,193.54,1.50418417]
[1761359839859,3.74046177,193.58,193.54,1.50418417]
[1761359840262,8.08897203,193.58,193.51,4.31418417]
[1761359841361,12.73777203,193.58,193.51,4.31418417]
[1761359841562,3.74046177,193.57,193.53,1.50418417]
[1761359841762,4.6488,193.58,193.53,1.50418417]
[1761359842061,4.6488,193.58,193.53,4.31418417]
[1761359842262,12.75663925,193.58,193.53,4.31418417]
[1761359842461,3.74046177,193.57,193.55,1.50418417]
[1761359842655,3.74046177,193.57,193.55,4.31418417]
[1761359842852,4.6488,193.58,193.55,4.31418417]
[1761359843257,12.75653151,193.58,193.55,4.31418417]
[1761359843458,3.74046177,193.57,193.55,4.31418417]
[1761359843659,4.6488,193.58,193.55,4.31418417]
[1761359844160,4.6488,193.58,193.54,4.31418417]
[1761359844161,3.74046177,193.57,193.54,4.31418417]
[1761359844361,8.10766091,193.57,193.54,4.31418417]
[1761359844860,3.74046177,193.56,193.53,1.50418417]
[1761359845057,3.74046177,193.55,193.53,1.50418417]
[1761359845254,8.10766091,193.56,193.53,1.50418417]
[1761359847560,8.10766091,193.56,193.53,4.31418417]
[1761359848464,8.10766091,193.56,193.53,1.50418417]
[1761359848673,8.10766091,193.56,193.55,1.50418417]
[1761359848862,3.74046177,193.56,193.55,4.31418417]
[1761359849164,8.10975714,193.58,193.55,4.31418417]
[1761359849364,3.74046177,193.57,193.55,4.31418417]
[1761359849968,8.10975714,193.58,193.56,2.81]
[1761359850665,8.10975714,193.58,193.56,4.31418417]
[1761359854770,8.10975714,193.58,193.56,2.81]
[1761359854962,8.10975714,193.58,193.56,4.31418417]
[1761359857574,8.10975714,193.58,193.56,1.50418417]
[1761359859174,3.74046177,193.57,193.56,1.50418417]
[1761359859670,3.74046177,193.57,193.56,4.26418417]
[1761359860977,3.74046177,193.57,193.56,1.50418417]
[1761359861467,3.74046177,193.57,193.54,1.50418417]
[1761359861670,3.74046177,193.56,193.54,1.50418417]
[1761359861872,3.74046177,193.57,193.54,1.50418417]
[1761359862172,3.74046177,193.56,193.54,1.50418417]
[1761359862372,3.74046177,193.57,193.54,1.50418417]
[1761359862573,3.74046177,193.56,193.54,1.50418417]
[1761359862873,3.74046177,193.57,193.54,1.50418417]
[1761359863072,3.74046177,193.56,193.54,1.50418417]
[1761359863271,4.36929537,193.58,193.54,1.50418417]
[1761359863272,3.74046177,193.55,193.54,1.50418417]
[1761359863468,3.74046177,193.57,193.54,1.50418417]
[1761359863669,3.74046177,193.56,193.54,1.50418417]
[1761359863868,3.74046177,193.55,193.54,1.50418417]
[1761359864070,3.74046177,193.57,193.54,1.50418417]
[1761359864269,3.74046177,193.56,193.54,1.50418417]
[1761359864472,3.74046177,193.55,193.54,1.50418417]
[1761359864773,3.74046177,193.57,193.54,1.50418417]
[1761359864975,3.74046177,193.56,193.54,1.50418417]
[1761359865170,3.74046177,193.55,193.54,1.50418417]
[1761359865365,3.74046177,193.57,193.54,1.50418417]
[1761359865572,3.74046177,193.56,193.54,1.50418417]
[1761359865765,3.74046177,193.55,193.54,1.50418417]
[1761359865968,3.74046177,193.57,193.54,1.50418417]
[1761359866164,3.74046177,193.56,193.54,1.50418417]
[1761359866370,3.74046177,193.55,193.54,1.50418417]
[1761359866569,8.10975714,193.57,193.54,1.50418417]
[1761359866870,3.74046177,193.56,193.54,1.50418417]
[1761359867074,3.74046177,193.55,193.54,1.50418417]
[1761359867264,3.74046177,193.56,193.54,1.50418417]
[1761359867463,3.74046177,193.55,193.54,1.50418417]
[1761359867664,3.74046177,193.56,193.54,1.50418417]
[1761359867965,3.74046177,193.55,193.54,1.50418417]
[1761359868678,3.74046177,193.55,193.52,2.34889743]
[1761359868871,3.74046177,193.54,193.53,2.76]
[1761359869066,3.74046177,193.56,193.53,2.76]
[1761359869272,3.74046177,193.55,193.53,2.76]
[1761359869466,3.74046177,193.54,193.53,2.76]
[1761359869665,3.74046177,193.56,193.53,2.76]
[1761359869866,3.74046177,193.55,193.53,2.76]
[1761359870069,3.74046177,193.54,193.53,2.76]
[1761359870277,3.74046177,193.56,193.53,2.76]
[1761359870476,3.74046177,193.55,193.53,2.76]
[1761359870680,3.74046177,193.54,193.53,2.76]
[1761359870874,3.74046177,193.56,193.53,2.76]
[1761359871075,3.74046177,193.55,193.53,2.76]
[1761359871275,3.74046177,193.54,193.53,2.76]
[1761359871479,3.74046177,193.56,193.53,2.76]
[1761359871672,3.74046177,193.55,193.53,2.76]
[1761359871869,3.74046177,193.54,193.53,2.76]
[1761359872073,3.74046177,193.56,193.53,2.76]
[1761359872272,3.74046177,193.55,193.53,2.76]
[1761359872477,3.74046177,193.54,193.53,2.76]
[1761359873071,3.74046177,193.54,193.52,5.10889743]
[1761359873266,3.74046177,193.53,193.52,5.10889743]
[1761359876881,3.74046177,193.53,193.51,2.76]
[1761359877178,3.74046177,193.52,193.51,2.76]
[1761359882085,8.13658146,193.52,193.5,2.34889743]
[1761359882292,8.13658146,193.51,193.5,2.34889743]
[1761359882479,8.13658146,193.51,193.48,2.73]
[1761359882480,8.13658146,193.51,193.45,2.73]
[1761359882678,8.13658146,193.5,193.44,2.34889743]
[1761359882884,8.13658146,193.49,193.42,2.73]
[1761359883087,8.13658146,193.48,193.42,2.73]
[1761359883283,4.82042007,193.5,193.42,2.73]
[1761359883284,8.1297285,193.47,193.42,2.73]
[1761359883483,3.74046177,193.46,193.42,2.73]
[1761359883683,8.12909434,193.49,193.42,2.73]
[1761359883883,3.74046177,193.48,193.42,2.73]
[1761359884186,3.74046177,193.47,193.42,2.73]
[1761359884388,8.12909434,193.48,193.42,2.73]
[1761359884689,3.74046177,193.47,193.42,2.73]
[1761359885291,4.38863257,193.48,193.42,2.73]
[1761359885292,8.12909434,193.48,193.42,2.73]
[1761359887193,3.74046177,193.48,193.42,2.73]
[1761359887588,4.6508,193.49,193.42,2.73]
[1761359887797,8.39126177,193.49,193.42,2.73]
[1761359888190,3.74046177,193.48,193.42,2.73]
[1761359888388,4.6508,193.49,193.42,2.73]
[1761359888784,12.7729088,193.49,193.42,2.73]
[1761359888988,3.74046177,193.48,193.42,2.73]
[1761359889183,4.6508,193.49,193.42,2.73]
[1761359889683,12.77174607,193.49,193.42,2.73]
[1761359889890,3.74046177,193.48,193.42,2.73]
[1761359890287,4.6508,193.49,193.42,2.73]
[1761359890693,12.77064816,193.49,193.42,2.73]
[1761359890894,3.74046177,193.48,193.42,2.73]
[1761359891089,4.6508,193.49,193.42,2.73]
[1761359891595,12.77038478,193.49,193.42,2.73]
[1761359891789,3.74046177,193.48,193.42,2.73]
[1761359892186,4.6508,193.49,193.42,2.73]
[1761359892591,4.6508,193.49,193.44,4.95889743]
[1761359892899,4.6508,193.49,193.45,2.61]
[1761359893586,4.6508,193.49,193.44,2.34889743]
[1761359895101,4.6508,193.49,193.44,4.95889743]
[1761359895295,4.6508,193.49,193.45,2.61]
[1761359896502,4.6508,193.49,193.44,2.34889743]
[1761359897197,4.6508,193.49,193.42,2.61]
[1761359899797,3.74046177,193.5,193.45,2.61]
[1761359899996,3.74046177,193.5,193.41,0.89964324]
[1761359899997,8.06107667,193.5,193.42,2.61]
[1761359900607,70.30107667,193.5,193.42,2.61]
[1761359900803,4.651,193.48,193.42,2.61]
[1761359904199,4.6514,193.47,193.42,2.61]
[1761359910816,4.6514,193.47,193.41,0.89964324]
[1761359911613,8.39186177,193.47,193.41,0.89964324]
[1761359911814,3.74046177,193.46,193.42,2.61]
[1761359912210,4.6514,193.47,193.42,2.61]
[1761359912714,8.39186177,193.47,193.42,2.61]
[1761359912918,3.74046177,193.46,193.42,2.61]
[1761359913313,4.6514,193.47,193.42,2.61]
[1761359913716,8.39186177,193.47,193.42,2.61]
[1761359913916,3.74046177,193.46,193.42,2.61]
[1761359914117,4.6514,193.47,193.42,2.61]
[1761359914324,12.88390973,193.48,193.36,2.61]
[1761359914622,12.88390973,193.47,193.36,2.61]
[1761359914823,8.06348966,193.46,193.36,2.61]
[1761359915015,62.26,193.45,193.36,2.61]
[1761359915216,8.06348966,193.44,193.36,2.61]
[1761359916012,4.6522,193.43,193.36,2.61]
[1761359916318,8.39266177,193.43,193.36,2.61]
[1761359916520,3.74046177,193.42,193.36,2.61]
[1761359917220,4.6522,193.43,193.36,2.61]
[1761359917719,12.7151994,193.43,193.36,2.61]
[1761359917923,3.74046177,193.42,193.36,2.61]
[1761359918125,4.6522,193.43,193.36,2.61]
[1761359918624,12.71526466,193.43,193.36,2.61]
[1761359918826,3.74046177,193.42,193.36,2.61]
[1761359919221,4.6522,193.43,193.36,2.61]
[1761359919423,3.74046177,193.44,193.37,2.76]
[1761359922125,8.06664751,193.44,193.37,2.76]
[1761359926021,3.74046177,193.44,193.4,2.76]
[1761359935124,66.9117,193.45,193.4,2.76]
[1761359935125,3.74046177,193.43,193.4,2.76]
[1761359935331,3.74046177,193.44,193.4,2.76]
[1761359935521,3.74046177,193.43,193.4,2.76]
[1761359935720,66.9117,193.45,193.4,2.76]
[1761359935721,3.74046177,193.44,193.4,2.76]
[1761359935925,3.74046177,193.43,193.4,2.76]
[1761359936126,3.74046177,193.44,193.4,2.76]
[1761359936334,3.74046177,193.43,193.4,2.76]
[1761359936530,3.74046177,193.44,193.4,2.76]
[1761359936729,3.74046177,193.43,193.4,2.76]
[1761359936929,3.74046177,193.44,193.4,2.76]
[1761359937130,3.74046177,193.43,193.4,2.76]
[1761359937325,3.74046177,193.44,193.4,2.76]
[1761359937523,4.6517,193.45,193.4,2.76]
[1761359937524,3.74046177,193.43,193.4,2.76]
[1761359937728,3.74046177,193.44,193.4,2.76]
[1761359937937,3.74046177,193.43,193.4,2.76]
[1761359938235,3.74046177,193.44,193.4,2.76]
[1761359938436,4.6517,193.45,193.4,2.76]
[1761359938437,3.74046177,193.43,193.4,2.76]
[1761359938637,3.74046177,193.44,193.4,2.76]
[1761359938837,3.74046177,193.43,193.4,2.76]
[1761359939138,3.74046177,193.44,193.4,2.76]
[1761359939342,3.74046177,193.43,193.4,2.76]
[1761359939536,3.74046177,193.44,193.4,2.76]
[1761359939732,3.74046177,193.43,193.4,2.76]
[1761359939932,3.74046177,193.44,193.4,2.76]
[1761359940132,4.6517,193.45,193.4,2.76]
[1761359940133,3.74046177,193.43,193.4,2.76]
[1761359940334,3.74046177,193.44,193.4,2.76]
[1761359940534,3.74046177,193.43,193.4,2.76]
[1761359940736,3.74046177,193.44,193.4,2.76]
[1761359940939,3.74046177,193.43,193.4,2.76]
[1761359941140,3.74046177,193.44,193.4,2.76]
[1761359941445,3.74046177,193.43,193.4,2.76]
[1761359941740,3.74046177,193.44,193.4,2.76]
[1761359941942,3.74046177,193.43,193.4,2.76]
[1761359942143,3.74046177,193.44,193.4,2.76]
[1761359942338,3.74046177,193.43,193.4,2.76]
[1761359942541,3.74046177,193.44,193.4,2.76]
[1761359942839,3.74046177,193.43,193.4,2.76]
[1761359943038,3.74046177,193.44,193.4,2.76]
[1761359943234,3.74046177,193.43,193.4,2.76]
[1761359943444,3.74046177,193.42,193.4,2.76]
[1761359943744,3.74046177,193.44,193.4,2.76]
[1761359943941,3.74046177,193.43,193.4,2.76]
[1761359944141,3.74046177,193.44,193.4,2.76]
[1761359944337,3.74046177,193.43,193.4,2.76]
[1761359944541,3.74046177,193.44,193.4,2.76]
[1761359944742,3.74046177,193.43,193.4,2.76]
[1761359944944,3.74046177,193.44,193.4,2.76]
[1761359945144,3.74046177,193.43,193.4,2.76]
[1761359945346,3.74046177,193.42,193.4,2.76]
[1761359945645,3.74046177,193.44,193.4,2.76]
[1761359945848,3.74046177,193.43,193.4,2.76]
[1761359946045,3.74046177,193.42,193.4,2.76]
[1761359946345,3.74046177,193.44,193.4,2.76]
[1761359946542,3.74046177,193.43,193.4,2.76]
[1761359946847,3.74046177,193.42,193.4,2.76]
[1761359947047,3.74046177,193.45,193.4,2.76]
[1761359947246,3.74046177,193.44,193.4,2.76]
[1761359947446,3.74046177,193.43,193.4,2.76]
[1761359947650,3.74046177,193.46,193.4,2.76]
[1761359947846,3.74046177,193.45,193.4,2.76]
[1761359948048,3.74046177,193.44,193.4,2.76]
[1761359948348,3.74046177,193.43,193.4,2.76]
[1761359948538,3.74046177,193.42,193.4,2.76]
[1761359948738,3.74046177,193.45,193.4,2.76]
[1761359948940,3.74046177,193.44,193.4,2.76]
[1761359949248,3.74046177,193.43,193.4,2.76]
[1761359949450,3.74046177,193.42,193.4,2.76]
[1761359949753,3.74046177,193.41,193.4,2.76]
[1761359949945,3.74046177,193.45,193.4,2.76]
[1761359950146,3.74046177,193.44,193.4,2.76]
[1761359950345,3.74046177,193.43,193.4,2.76]
[1761359950643,3.74046177,193.42,193.4,2.76]
[1761359950843,3.74046177,193.41,193.4,2.76]
[1761359951045,3.74046177,193.45,193.4,2.76]
[1761359951247,3.74046177,193.44,193.4,2.76]
[1761359951546,3.74046177,193.43,193.4,2.76]
[1761359951747,3.74046177,193.42,193.4,2.76]
[1761359951947,3.74046177,193.41,193.4,2.76]
[1761359952146,3.74046177,193.45,193.4,2.76]
[1761359952339,3.74046177,193.44,193.4,2.76]
[1761359952544,3.74046177,193.43,193.4,2.76]
[1761359952744,3.74046177,193.42,193.4,2.76]
[1761359953052,3.74046177,193.41,193.4,2.76]
[1761359953254,3.74046177,193.45,193.4,2.76]
[1761359953452,3.74046177,193.44,193.4,7.4127]
[1761359953648,3.74046177,193.45,193.41,2.68]
[1761359953848,3.74046177,193.44,193.42,1.50553244]
[1761359954048,3.74046177,193.46,193.43,2.68]
[1761359954254,3.74046177,193.45,193.43,2.68]
[1761359954454,3.74046177,193.46,193.43,2.68]
[1761359954648,3.74046177,193.45,193.43,2.68]
[1761359954848,3.74046177,193.48,193.43,2.68]
[1761359955052,3.74046177,193.47,193.43,2.68]
[1761359955251,3.74046177,193.46,193.43,4.652]
[1761359955448,3.74046177,193.49,193.44,2.68]
[1761359955649,3.74046177,193.48,193.44,2.68]
[1761359955850,3.74046177,193.47,193.44,2.68]
[1761359956154,3.74046177,193.46,193.44,2.68]
[1761359956352,3.74046177,193.49,193.44,2.68]
[1761359956545,3.74046177,193.48,193.44,2.68]
[1761359956746,3.74046177,193.47,193.44,2.68]
[1761359956946,3.74046177,193.46,193.44,2.68]
[1761359957143,3.74046177,193.49,193.44,2.68]
[1761359957347,3.74046177,193.48,193.44,2.68]
[1761359957652,3.74046177,193.47,193.44,2.68]
[1761359957950,3.74046177,193.49,193.44,2.68]
[1761359958150,3.74046177,193.49,193.46,2.68]
[1761359958349,3.74046177,193.5,193.46,2.68]
[1761359958549,3.74046177,193.49,193.46,2.68]
[1761359958755,3.74046177,193.5,193.46,2.68]
[1761359959052,3.74046177,193.49,193.47,2.68]
[1761359959256,3.74046177,193.5,193.47,2.68]
[1761359961459,117.95279807,193.51,193.47,2.68]
[1761359961649,117.95279807,193.51,193.47,7.331]
[1761359961850,117.95279807,193.51,193.48,2.68]
[1761359962958,117.95279807,193.51,193.48,7.3308]
[1761359963357,117.95279807,193.51,193.48,4.6508]
[1761359963559,117.95279807,193.51,193.49,7.3306]
[1761359963855,117.95279807,193.51,193.5,2.68]